fUST/lending_fUST_20240701
["ID","MTS","AMOUNT","RATE_DAILY","PERIOD"]
[330770626,1719767443423,-500.0,0.00015073,2]
[330770627,1719767443433,-500.0,0.00015073,2]
[330770628,1719767443442,-537.66,0.00015073,2]
[330770629,1719767443451,-500.0,0.00015073,2]
[330770630,1719767443462,-500.0,0.00015073,2]
[330770631,1719767443472,-500.0,0.00015073,2]
[330770632,1719767443481,-500.0,0.00015073,2]
[330770633,1719767443491,-500.0,0.00015073,2]
[330770634,1719767443501,-500.0,0.00015073,2]
[330770635,1719767443510,-19548.55,0.00015073,2]
[330770636,1719767443520,-649.07,0.00015073,2]
[330770637,1719767443529,-447.97188149,0.00015073,2]
[330770638,1719767443539,-677.78,0.00015073,2]
[330770640,1719767443549,-527.7,0.00015073,2]
[330770641,1719767443558,-624.65,0.00015074,2]
[330770643,1719767443567,-2656.83,0.00015074,2]
[330770644,1719767443577,-10171.51,0.00015074,2]
[330770645,1719767443587,-2191.63,0.00015074,2]
[330770646,1719767443597,-500.0,0.00015074,2]
[330770647,1719767443607,-1610.58,0.00015074,2]
[330770648,1719767443616,-1706.84,0.00015074,2]
[330770649,1719767443625,-17977.42,0.00015074,2]
[330770650,1719767443634,-527.7,0.00015439,2]
[330770651,1719767443643,-153.0,0.00015479,2]
[330770653,1719767443653,-153.0,0.00015479,2]
[330770654,1719767443662,-153.0,0.00015479,2]
[330770656,1719767443672,-153.0,0.00015481,2]
[330770657,1719767443681,-153.0,0.00015481,2]
[330770659,1719767443691,-153.0,0.00015481,2]
[330770661,1719767443700,-153.0,0.00015482,2]
[330770662,1719767443710,-153.0,0.00015486,2]
[330770664,1719767443720,-153.0,0.00015486,2]
[330770666,1719767443729,-153.0,0.00015486,2]
[330770667,1719767443739,-153.0,0.00015486,2]
[330770669,1719767443748,-153.0,0.00015486,2]
[330770671,1719767443757,-153.0,0.00015486,2]
[330770672,1719767443766,-153.0,0.00015486,2]
[330770674,1719767443776,-5286.34479944,0.00015571,2]
[330770676,1719767443785,-285.06500493,0.00015613,2]
[330770678,1719767443795,-500.0,0.00015615,2]
[330770679,1719767443804,-877.0,0.00015616,2]
[330770681,1719767443818,-1327.98,0.00015616,2]
[330770683,1719767443827,-2443.99,0.00015616,2]
[330770685,1719767443837,-1032.76,0.00015616,2]
[330770686,1719767443847,-500.0,0.00015616,2]
[330770688,1719767443856,-500.0,0.00015616,2]
[330770690,1719767443865,-20759.88,0.00015616,2]
[330770691,1719767443874,-4100.23,0.00015616,2]
[330770692,1719767443884,-6132.49,0.00015616,2]
[330770693,1719767443894,-884.59,0.00015616,2]
[330770694,1719767443904,-2993.65,0.00015616,2]
[330770695,1719767443913,-577.64,0.00015616,2]
[330770696,1719767443922,-2771.27,0.00015616,2]
[330770697,1719767443930,-527.38,0.00015616,2]
[330770698,1719767443939,-2791.62,0.00015616,2]
[330770699,1719767443949,-822.67,0.00015616,2]
[330770700,1719767443958,-7646.81,0.00015616,2]
[330770701,1719767443968,-2279.79,0.00015616,2]
[330770702,1719767443977,-8638.46,0.00015616,2]
[330770703,1719767443987,-500.0,0.00015616,2]
[330770704,1719767443996,-500.0,0.00015616,2]
[330770705,1719767444005,-2873.36,0.00015616,2]
[330770706,1719767444015,-21956.8,0.00015616,2]
[330770707,1719767444024,-732.02,0.00015616,2]
[330770708,1719767444033,-963.73,0.00015616,2]
[330770709,1719767444042,-3105.96,0.00015616,2]
[330770710,1719767444051,-5492.37,0.00015616,2]
[330770711,1719767444060,-982.52,0.00015616,2]
[330770712,1719767444069,-654.04,0.00015616,2]
[330770713,1719767444079,-500.0,0.00015616,2]
[330770714,1719767444089,-527.7,0.00015616,2]
[330770715,1719767444098,-500.0,0.00015617,2]
[330770716,1719767444107,-257.25285866,0.00015617,2]
[330770717,1719767444117,-2266.53,0.00015617,2]
[330770718,1719767444126,-500.0,0.00015617,2]
[330770719,1719767444136,-500.0,0.00015617,2]
[330770720,1719767444145,-584.14,0.00015617,2]
[330770721,1719767444155,-500.0,0.00015617,2]
[330770722,1719767444165,-2853.72,0.00015617,2]
[330770723,1719767444175,-571.43,0.00015617,2]
[330770724,1719767444270,-625.72913257,0.00015617,2]
[330770725,1719767444282,-592.33,0.00015617,2]
[330770726,1719767444291,-500.0,0.00015617,2]
[330770727,1719767444301,-500.0,0.00015617,2]
[330770728,1719767444311,-584.7,0.00015617,2]
[330770729,1719767444320,-500.0,0.00015617,2]
[330770730,1719767444329,-2553.7,0.00015617,2]
[330770731,1719767444339,-513.07,0.00015617,2]
[330770732,1719767444348,-3012.08,0.00015617,2]
[330770733,1719767444358,-500.0,0.00015617,2]
[330770734,1719767444367,-500.0,0.00015617,2]
[330770735,1719767444377,-975.86,0.00015617,2]
[330770736,1719767444387,-500.0,0.00015617,2]
[330770737,1719767444396,-500.0,0.00015617,2]
[330770738,1719767444405,-500.0,0.00015617,2]
[330770739,1719767444415,-527.89155646,0.00015617,2]
[330770740,1719767444424,-228.62,0.00015617,2]
[330770741,1719767444433,-625.33754958,0.00015617,2]
[330770742,1719767444442,-500.0,0.00015617,2]
[330770743,1719767444452,-1121.74,0.00015617,2]
[330770744,1719767444462,-500.0,0.00015617,2]
[330770745,1719767444472,-500.0,0.00015617,2]
[330770746,1719767444481,-661.43,0.00015617,2]
[330770747,1719767444490,-500.0,0.00015617,2]
[330770748,1719767444500,-197.3902433,0.00015617,2]
[330770749,1719767445445,-302.6097567,0.00015617,2]
[330770750,1719767445454,-86.46330891,0.00015617,2]
[330770751,1719767445910,-769.46669109,0.00015617,2]
[330770752,1719767445919,-599.92734355,0.00015617,2]
[330770753,1719767445931,-201.74265645,0.00015617,2]
[330770754,1719767445940,-1053.22,0.00015617,2]
[330770755,1719767445949,-500.0,0.00015617,2]
[330770756,1719767445958,-584.89,0.00015617,2]
[330770757,1719767445970,-844.83,0.00015617,2]
[330770758,1719767445979,-726.78,0.00015617,2]
[330770759,1719767445991,-500.0,0.00015617,2]
[330770760,1719767446010,-500.0,0.00015617,2]
[330770761,1719767446026,-500.0,0.00015617,2]
[330770762,1719767446045,-500.0,0.00015617,2]
[330770763,1719767446063,-500.0,0.00015617,2]
[330770764,1719767446083,-500.0,0.00015617,2]
[330770765,1719767446100,-500.0,0.00015617,2]
[330770766,1719767446115,-500.0,0.00015617,2]
[330770767,1719767446132,-500.0,0.00015617,2]
[330770768,1719767446145,-500.0,0.00015617,2]
[330770769,1719767446161,-1198.41297792,0.00015617,2]
[330770771,1719767446202,-500.0,0.00015617,2]
[330770775,1719767446588,273.37336231,9.9e-05,2]
[330770780,1719767447021,-500.0,0.00015069,2]
[330770781,1719767447035,-106.7,0.00015617,2]
[330770782,1719767448167,24900.0,0.00014621,2]
[330770783,1719767491836,273.37336231,9.9e-05,2]
[330770784,1719767500384,273.37336231,9.9e-05,2]
[330770788,1719767539696,208.3392434,0.00012,2]
[330770789,1719767539730,282.93616103,0.00012,2]
[330770790,1719767543802,154.97675349,0.00012,2]
[330770791,1719767545168,723.78639686,0.00012,2]
[330770792,1719767545587,195.52436264,0.00012,2]
[330770793,1719767547596,155.00852547,0.00012,2]
[330770794,1719767547967,239.56788705,0.00012,2]
[330770795,1719767548603,164.81209326,0.00012,2]
[330770797,1719767550019,1487.60034683,0.00012,2]
[330770798,1719767550739,6971.08828511,0.00012,2]
[330770799,1719767550983,567.15112247,0.00012,2]
[330770800,1719767551100,299.47574748,0.00012,2]
[330770801,1719767551616,550.22191672,0.00012,2]
[330770802,1719767553126,207.66347557,0.00012,2]
[330770803,1719767553186,159.75544924,0.00012,2]
[330770804,1719767554262,318.0694556,0.00012,2]
[330770806,1719767557936,947.4992689,0.00015,2]
[330770807,1719767560106,3923.79380923,0.00012,2]
[330770808,1719767561417,154.99301759,0.00012,2]
[330770809,1719767563394,241.01748097,0.00012,2]
[330770810,1719767563434,661.12832609,0.00012,2]
[330770811,1719767564294,401.7459215,0.00012,2]
[330770812,1719767564744,159.35965211,0.00012,2]
[330770813,1719767564875,524.53687803,0.00012,2]
[330770814,1719767565158,2129.2320514,0.00012,2]
[330770816,1719767567561,1284.76673272,0.00012,2]
[330770817,1719767567932,1569.01894779,0.00012,2]
[330770818,1719767567985,517.10415187,0.00012,2]
[330770819,1719767568019,1913.6932576,0.00012,2]
[330770820,1719767568436,706.22316216,0.00012,2]
[330770821,1719767570116,933.08575257,0.00012,2]
[330770822,1719767572105,165.42198771,0.00012,2]
[330770823,1719767572584,155.25547477,0.00012,2]
[330770824,1719767575942,1313.011853,0.00012,2]
[330770825,1719767576127,157.57380656,0.00012,2]
[330770826,1719767578845,457.57827588,0.00012,2]
[330770827,1719767580300,208.7303948,0.00012,2]
[330770828,1719767581718,8922.04197618,0.00012,2]
[330770829,1719767582095,163.41961363,0.00012,2]
[330770830,1719767595709,208.3392434,0.00014545,2]
[330770831,1719767595745,2124.49069545,0.00014545,2]
[330770834,1719767600242,286.45866748,0.00014545,2]
[330770835,1719767609149,11121.90890306,0.00014545,2]
[330770836,1719767611571,1118.73509228,0.00014999,2]
[330770837,1719767615775,2117.15878926,0.00014999,2]
[330770838,1719767616904,516.78911209,0.00014545,2]
[330770840,1719767625932,523.09668254,0.00014999,2]
[330770842,1719767628977,179.583121,0.00014999,2]
[330770843,1719767629813,1593.05209417,0.00015,2]
[330770844,1719767633006,293.07017019,0.00014999,2]
[330770855,1719767767573,296.09310019,0.00014999,2]
[330770856,1719767786958,489.1904409,0.00014999,2]
[330770857,1719767819836,3000.0,0.00014069,2]
[330770858,1719767896942,288.07809002,0.00014966,2]
[330770859,1719767925291,431.1151401,0.00014068,2]
[330770860,1719767956836,259.39180364,0.00014999,2]
[330770861,1719768012217,425.99473681,0.00014999,2]
[330770862,1719768066794,250.0,0.00014067,2]
[330770878,1719768425687,306.48765772,0.00014999,2]
[330770880,1719768435914,239.56788705,0.00014999,2]
[330770881,1719768438080,195.57704168,0.00014999,2]
[330770882,1719768441556,947.4992689,0.00015,2]
[330770883,1719768487891,167.4837934,0.00014066,2]
[330770884,1719768497212,252.06832875,0.00014964,2]
[330770886,1719768544856,-300.0,0.00015063,2]
[330770887,1719768544887,-366.52637385,0.00015064,2]
[330770888,1719768544923,-133.47362615,0.00015064,2]
[330770889,1719768544954,-533.0527477,0.00015064,2]
[330770890,1719768545117,-626.63473187,0.00015064,2]
[330770900,1719768611490,661.12832609,0.00014999,2]
[330770988,1719768638802,-300.0,0.00015063,2]
[330770989,1719768638812,-300.0,0.00015063,2]
[330770990,1719768638822,-864.08501421,0.00015064,2]
[330770991,1719768638835,-125.63498579,0.00015064,2]
[330770992,1719768638844,-500.0,0.00015064,2]
[330770993,1719768638854,-79.75668928,0.00015064,2]
[330770994,1719768638866,-1375.0619425,0.00015064,2]
[330770995,1719768638879,-2474.56136822,0.00015064,2]
[330770996,1719768638888,-650.90300256,0.00015064,2]
[330770998,1719768638900,-1346.5,0.00015064,2]
[330770999,1719768638912,-3879.56699744,0.00015064,2]
[330771000,1719768638922,-2868.91,0.00015064,2]
[330771001,1719768638932,-553.58,0.00015064,2]
[330771002,1719768638942,-2655.8,0.00015064,2]
[330771003,1719768638951,-505.41,0.00015064,2]
[330771004,1719768638961,-2675.31,0.00015064,2]
[330771005,1719768638971,-500.0,0.00015064,2]
[330771006,1719768638980,-806.71,0.00015064,2]
[330771007,1719768638989,-7328.2,0.00015064,2]
[330771008,1719768638999,-2216.48,0.00015064,2]
[330771009,1719768639008,-1272.64,0.00015064,2]
[330771010,1719768639018,-500.0,0.00015064,2]
[330771011,1719768639028,-20993.62,0.00015064,2]
[330771012,1719768639037,-500.0,0.00015064,2]
[330771013,1719768639047,-701.52,0.00015064,2]
[330771014,1719768639057,-2976.54,0.00015064,2]
[330771015,1719768639066,-923.58,0.00015064,2]
[330771016,1719768639077,-5263.52,0.00015064,2]
[330771017,1719768639088,-626.78,0.00015064,2]
[330771018,1719768639098,-2342.16,0.00015064,2]
[330771019,1719768639108,-500.0,0.00015064,2]
[330771020,1719768639118,-500.0,0.00015065,2]
[330771021,1719768639128,-2172.09,0.00015065,2]
[330771022,1719768639142,-500.0,0.00015065,2]
[330771023,1719768639153,-500.0,0.00015065,2]
[330771024,1719768639163,-500.0,0.00015065,2]
[330771025,1719768639174,-500.0,0.00015065,2]
[330771026,1719768639184,-500.0,0.00015065,2]
[330771027,1719768639195,-2734.82,0.00015065,2]
[330771028,1719768639206,-547.62,0.00015065,2]
[330771029,1719768639219,-500.0,0.00015065,2]
[330771030,1719768639229,-500.0,0.00015065,2]
[330771031,1719768639240,-500.0,0.00015065,2]
[330771032,1719768639250,-560.34,0.00015065,2]
[330771033,1719768639260,-2447.3,0.00015065,2]
[330771034,1719768639271,-19894.88,0.00015065,2]
[330771035,1719768639281,-2405.47,0.00015065,2]
[330771036,1719768639291,-847.73,0.00015065,2]
[330771037,1719768639302,-759.97,0.00015065,2]
[330771038,1719768639313,-500.0,0.00015065,2]
[330771039,1719768639324,-946.54,0.00015065,2]
[330771040,1719768639334,-1631.53,0.00015065,2]
[330771041,1719768639344,-707.79,0.00015065,2]
[330771042,1719768639355,-500.0,0.00015065,2]
[330771043,1719768639365,-500.0,0.00015065,2]
[330771044,1719768639376,-500.0,0.00015065,2]
[330771045,1719768639387,-500.0,0.00015065,2]
[330771046,1719768639397,-1525.53,0.00015065,2]
[330771047,1719768639408,-8278.52,0.00015065,2]
[330771048,1719768639418,-500.0,0.00015065,2]
[330771049,1719768639427,-500.0,0.00015065,2]
[330771050,1719768639437,-550.02769491,0.00015065,2]
[330771051,1719768639448,-2753.64,0.00015065,2]
[330771052,1719768639458,-500.0,0.00015065,2]
[330771053,1719768639469,-239.08603204,0.00015065,2]
[330771054,1719768639479,-734.86,0.00015065,2]
[330771055,1719768639489,-517.27090328,0.00015065,2]
[330771056,1719768639501,-552.78,0.00015065,2]
[330771057,1719768639512,-965.45,0.00015065,2]
[330771058,1719768639522,-571.12,0.00015065,2]
[330771059,1719768639531,-774.43,0.00015065,2]
[330771060,1719768639542,-941.58,0.00015065,2]
[330771061,1719768639553,-500.0,0.00015065,2]
[330771062,1719768639563,-666.21,0.00015065,2]
[330771063,1719768639574,-510.23074069,0.00015065,2]
[330771064,1719768639585,-500.0,0.00015065,2]
[330771065,1719768639595,-500.0,0.00015065,2]
[330771066,1719768639606,-500.0,0.00015065,2]
[330771067,1719768639616,-1331.99,0.00015065,2]
[330771068,1719768639627,-784.37,0.00015065,2]
[330771069,1719768639637,-500.0,0.00015065,2]
[330771070,1719768639648,-500.0,0.00015065,2]
[330771071,1719768639659,-2570.88,0.00015065,2]
[330771072,1719768639669,-500.0,0.00015065,2]
[330771073,1719768639680,-500.0,0.00015065,2]
[330771074,1719768639690,-12536.12,0.00015065,2]
[330771075,1719768639702,-500.0,0.00015065,2]
[330771076,1719768639712,-500.0,0.00015065,2]
[330771077,1719768639723,-950.91,0.00015065,2]
[330771078,1719768639733,-4468.65,0.00015065,2]
[330771079,1719768639743,-500.0,0.00015065,2]
[330771080,1719768639754,-1867.68,0.00015065,2]
[330771081,1719768639764,-1302.09,0.00015065,2]
[330771082,1719768639774,-500.0,0.00015065,2]
[330771083,1719768639785,-506.75248737,0.00015065,2]
[330771084,1719768639796,-500.0,0.00015065,2]
[330771085,1719768639806,-837.5,0.00015065,2]
[330771086,1719768639816,-937.43,0.00015065,2]
[330771087,1719768639827,-527.5,0.00015065,2]
[330771088,1719768639838,-500.0,0.00015065,2]
[330771089,1719768639848,-899.44,0.00015065,2]
[330771090,1719768639858,-500.0,0.00015065,2]
[330771091,1719768639868,-500.0,0.00015065,2]
[330771092,1719768639878,-1655.71,0.00015065,2]
[330771093,1719768639888,-506.23553151,0.00015065,2]
[330771094,1719768639898,-1106.66,0.00015065,2]
[330771095,1719768639908,-500.0,0.00015065,2]
[330771096,1719768639918,-1910.7,0.00015065,2]
[330771097,1719768639929,-1076.11,0.00015065,2]
[330771098,1719768639941,-628.91,0.00015065,2]
[330771099,1719768639950,-500.0,0.00015065,2]
[330771100,1719768639961,-575.42,0.00015065,2]
[330771101,1719768639972,-501.67,0.00015065,2]
[330771102,1719768639983,-654.73,0.00015065,2]
[330771103,1719768639993,-2170.31,0.00015065,2]
[330771104,1719768640003,-448.22,0.00015065,2]
[330771105,1719768640014,-226.31530429,0.00015065,2]
[330771106,1719768640024,-478.73257654,0.00015065,2]
[330771107,1719768640035,-500.0,0.00015065,2]
[330771108,1719768640046,-500.0,0.00015065,2]
[330771109,1719768640057,-500.0,0.00015065,2]
[330771110,1719768640068,-500.0,0.00015065,2]
[330771111,1719768640078,-68455.07292665,0.00015066,2]
[330771112,1719768640089,-500.0,0.00015066,2]
[330771113,1719768640100,-257.25285866,0.00015066,2]
[330771115,1719768640112,-500.0,0.00015066,2]
[330771116,1719768640123,-500.0,0.00015066,2]
[330771117,1719768640136,-609.91,0.00015066,2]
[330771118,1719768640148,-625.72913257,0.00015066,2]
[330771119,1719768640159,-500.0,0.00015066,2]
[330771123,1719768640270,-567.65,0.00015066,2]
[330771124,1719768640281,-500.0,0.00015066,2]
[330771125,1719768640291,-500.0,0.00015066,2]
[330771126,1719768640301,-500.0,0.00015066,2]
[330771127,1719768640312,-500.0,0.00015066,2]
[330771128,1719768640322,-500.0,0.00015066,2]
[330771129,1719768640331,-935.2,0.00015066,2]
[330771130,1719768640341,-500.0,0.00015066,2]
[330771131,1719768640351,-500.0,0.00015066,2]
[330771132,1719768640361,-500.0,0.00015066,2]
[330771133,1719768640371,-625.33754958,0.00015066,2]
[330771134,1719768640381,-527.89155646,0.00015066,2]
[330771135,1719768640392,-1075.01,0.00015066,2]
[330771136,1719768640402,-500.0,0.00015066,2]
[330771137,1719768640412,-500.0,0.00015066,2]
[330771138,1719768640423,-500.0,0.00015066,2]
[330771139,1719768640433,-784.6,0.00015066,2]
[330771140,1719768640443,-633.87,0.00015066,2]
[330771141,1719768640454,-500.0,0.00015066,2]
[330771142,1719768640466,-536.15,0.00015066,2]
[330771143,1719768640476,-500.0,0.00015066,2]
[330771144,1719768640486,-500.0,0.00015066,2]
[330771145,1719768640495,-500.0,0.00015066,2]
[330771146,1719768640504,-500.0,0.00015066,2]
[330771147,1719768640514,-500.0,0.00015066,2]
[330771148,1719768640524,-500.0,0.00015066,2]
[330771149,1719768640534,-568.54,0.00015066,2]
[330771150,1719768640545,-500.0,0.00015066,2]
[330771151,1719768640557,-504.59801319,0.00015066,2]
[330771152,1719768640567,-500.0,0.00015066,2]
[330771153,1719768640577,-500.0,0.00015066,2]
[330771154,1719768640587,-1473.8,0.00015066,2]
[330771155,1719768640596,-507.2552439,0.00015066,2]
[330771156,1719768640606,-500.0,0.00015066,2]
[330771157,1719768640616,-188.09167626,0.00015066,2]
[330771158,1719768640625,-520.63,0.00015066,2]
[330771159,1719768640635,-671.75,0.00015066,2]
[330771160,1719768640644,-500.0,0.00015066,2]
[330771161,1719768640654,-516.9,0.00015066,2]
[330771162,1719768640664,-500.0,0.00015066,2]
[330771163,1719768640673,-500.0,0.00015066,2]
[330771164,1719768640683,-914.8,0.00015066,2]
[330771165,1719768640693,-500.0,0.00015066,2]
[330771166,1719768640704,-545.83,0.00015066,2]
[330771167,1719768640716,-626.36,0.00015066,2]
[330771168,1719768640726,-500.0,0.00015066,2]
[330771169,1719768640740,-500.0,0.00015066,2]
[330771170,1719768640751,-500.0,0.00015066,2]
[330771171,1719768640761,-500.0,0.00015066,2]
[330771172,1719768640771,-500.0,0.00015066,2]
[330771173,1719768640781,-500.0,0.00015066,2]
[330771174,1719768640791,-505.54,0.00015066,2]
[330771175,1719768640800,-500.0,0.00015066,2]
[330771176,1719768640810,-632.68,0.00015066,2]
[330771177,1719768640821,-500.0,0.00015066,2]
[330771178,1719768640831,-696.25,0.00015066,2]
[330771179,1719768640841,-500.0,0.00015066,2]
[330771180,1719768640851,-500.0,0.00015066,2]
[330771181,1719768640861,-817.46,0.00015066,2]
[330771182,1719768640870,-500.0,0.00015066,2]
[330771183,1719768640880,-1267.68,0.00015066,2]
[330771184,1719768640890,-500.0,0.00015066,2]
[330771185,1719768640900,-500.0,0.00015066,2]
[330771186,1719768640909,-500.0,0.00015066,2]
[330771187,1719768640919,-500.0,0.00015066,2]
[330771188,1719768640929,-500.0,0.00015066,2]
[330771189,1719768640939,-500.0,0.00015066,2]
[330771190,1719768640948,-500.0,0.00015066,2]
[330771191,1719768640959,-500.0,0.00015066,2]
[330771192,1719768640969,-500.0,0.00015066,2]
[330771193,1719768640979,-500.0,0.00015066,2]
[330771194,1719768640990,-500.0,0.00015066,2]
[330771195,1719768641000,-500.0,0.00015066,2]
[330771196,1719768641010,-395.96833095,0.00015066,2]
[330771197,1719768641019,-543.03204284,0.00015066,2]
[330771198,1719768641029,-500.0,0.00015066,2]
[330771199,1719768641039,-500.0,0.00015066,2]
[330771200,1719768641048,-500.0,0.00015066,2]
[330771201,1719768641058,-500.0,0.00015066,2]
[330771202,1719768641068,-1104.17,0.00015066,2]
[330771203,1719768641077,-500.0,0.00015066,2]
[330771204,1719768641088,-352.06217992,0.00015066,2]
[330771205,1719768641097,-500.0,0.00015066,2]
[330771206,1719768641107,-500.0,0.00015066,2]
[330771207,1719768641117,-500.0,0.00015066,2]
[330771208,1719768641127,-500.0,0.00015066,2]
[330771209,1719768641141,-500.0,0.00015066,2]
[330771210,1719768641151,-155.0,0.00015066,2]
[330771211,1719768641161,-500.0,0.00015066,2]
[330771212,1719768641171,-504.24601484,0.00015066,2]
[330771213,1719768641183,-500.0,0.00015066,2]
[330771214,1719768641192,-500.0,0.00015066,2]
[330771215,1719768641202,-502.49076072,0.00015066,2]
[330771216,1719768641216,-500.0,0.00015066,2]
[330771217,1719768641227,-604.38,0.00015066,2]
[330771218,1719768641237,-500.0,0.00015066,2]
[330771219,1719768641247,-667.09,0.00015066,2]
[330771220,1719768641256,-500.0,0.00015066,2]
[330771221,1719768641266,-500.0,0.00015066,2]
[330771222,1719768641276,-565.48491466,0.00015066,2]
[330771223,1719768641285,-500.0,0.00015066,2]
[330771224,1719768641295,-500.0,0.00015066,2]
[330771225,1719768641305,-500.0,0.00015066,2]
[330771226,1719768641315,-1355.07,0.00015066,2]
[330771227,1719768641325,-500.0,0.00015066,2]
[330771228,1719768641335,-500.0,0.00015066,2]
[330771229,1719768641345,-500.0,0.00015066,2]
[330771230,1719768641354,-500.0,0.00015066,2]
[330771231,1719768641364,-500.0,0.00015066,2]
[330771232,1719768641374,-500.0,0.00015066,2]
[330771233,1719768641384,-500.0,0.00015066,2]
[330771234,1719768641394,-500.0,0.00015066,2]
[330771235,1719768641404,-559.10364024,0.00015066,2]
[330771236,1719768641415,-544.46695782,0.00015066,2]
[330771237,1719768641425,-500.0,0.00015066,2]
[330771238,1719768641436,-500.0,0.00015066,2]
[330771239,1719768641446,-500.0,0.00015066,2]
[330771240,1719768641456,-500.0,0.00015066,2]
[330771241,1719768641469,-1188.96,0.00015066,2]
[330771242,1719768641479,-500.0,0.00015066,2]
[330771243,1719768641490,-500.0,0.00015066,2]
[330771244,1719768641500,-618.28,0.00015066,2]
[330771245,1719768641511,-500.0,0.00015066,2]
[330771246,1719768641521,-500.0,0.00015066,2]
[330771247,1719768641532,-2777.63,0.00015066,2]
[330771248,1719768641542,-576.88372015,0.00015066,2]
[330771249,1719768641551,-305.09834405,0.00015067,2]
[330771250,1719768641561,-500.0,0.00015067,2]
[330771251,1719768641570,-500.0,0.00015067,2]
[330771252,1719768641580,-500.0,0.00015067,2]
[330771253,1719768641589,-500.0,0.00015067,2]
[330771254,1719768641600,-1260.68,0.00015067,2]
[330771255,1719768641609,-500.0,0.00015067,2]
[330771256,1719768641619,-1047.03,0.00015067,2]
[330771257,1719768641629,-518.62875156,0.00015067,2]
[330771258,1719768641639,-500.0,0.00015067,2]
[330771259,1719768641648,-500.0,0.00015067,2]
[330771260,1719768641658,-500.0,0.00015067,2]
[330771261,1719768641667,-500.0,0.00015067,2]
[330771262,1719768641677,-635.80447038,0.00015067,2]
[330771263,1719768641688,-802.98,0.00015067,2]
[330771264,1719768641697,-500.0,0.00015067,2]
[330771265,1719768641709,-500.0,0.00015067,2]
[330771266,1719768641719,-2470.05,0.00015067,2]
[330771267,1719768641729,-500.0,0.00015067,2]
[330771268,1719768641739,-627.36491239,0.00015067,2]
[330771269,1719768641750,-370.21868496,0.00015067,2]
[330771270,1719768641760,-500.0,0.00015067,2]
[330771271,1719768641770,-1529.15,0.00015067,2]
[330771272,1719768641781,-500.0,0.00015067,2]
[330771273,1719768641791,-500.0,0.00015067,2]
[330771274,1719768641800,-500.0,0.00015067,2]
[330771275,1719768641810,-500.0,0.00015067,2]
[330771276,1719768641820,-500.23,0.00015067,2]
[330771277,1719768641831,-895.87,0.00015067,2]
[330771278,1719768641842,-1119.91,0.00015067,2]
[330771279,1719768641852,-1786.0,0.00015067,2]
[330771280,1719768641861,-718.37,0.00015067,2]
[330771281,1719768641871,-720.14,0.00015067,2]
[330771282,1719768641882,-2145.3,0.00015067,2]
[330771283,1719768641892,-500.0,0.00015067,2]
[330771284,1719768641902,-500.0,0.00015067,2]
[330771285,1719768641912,-500.0,0.00015067,2]
[330771286,1719768641922,-500.0,0.00015067,2]
[330771287,1719768642033,-1115.46,0.00015067,2]
[330771288,1719768642044,-500.0,0.00015067,2]
[330771289,1719768642055,-2004.13,0.00015067,2]